[Event "*** Titled Tuesday Blitz"]
[Site "Chess.com"]
[Date "2020.03.03"]
[Round "8"]
[White "Babas"]
[Black "Fuerza777"]
[Result "0-1"]
[WhiteElo "2334"]
[BlackElo "2218"]
[TimeControl "180+1"]
[EndTime "14:34:13 PST"]
[Termination "Fuerza777 won on time"]

1. d4 {[%clk 0:02:05.7]} 1... d5 {[%clk 0:02:59.2]} 2. Nf3 {[%clk 0:01:44.4]}
2... Nf6 {[%clk 0:02:57.8]} 3. c4 {[%clk 0:01:28.1]} 3... e6 {[%clk 0:02:57.2]}
4. cxd5 {[%clk 0:01:28.3]} 4... exd5 {[%clk 0:02:56.1]} 5. Bg5 {[%clk
0:01:29.2]} 5... c6 {[%clk 0:02:51.4]} 6. Nc3 {[%clk 0:01:29.2]} 6... h6 {[%clk
0:02:44.1]} 7. Bh4 {[%clk 0:01:28]} 7... Be7 {[%clk 0:02:36.5]} 8. e3 {[%clk
0:01:27]} 8... Bf5 {[%clk 0:02:36.1]} 9. Bd3 {[%clk 0:01:21.8]} 9... Bxd3 {[%clk
0:02:36]} 10. Qxd3 {[%clk 0:01:22.7]} 10... O-O {[%clk 0:02:31.6]} 11. O-O
{[%clk 0:01:12.5]} 11... Nbd7 {[%clk 0:02:26.5]} 12. Rab1 {[%clk 0:01:10.6]}
12... a5 {[%clk 0:02:25.6]} 13. a3 {[%clk 0:01:04.3]} 13... Re8 {[%clk 0:02:25]}
14. Bg3 {[%clk 0:01:02.7]} 14... Ne4 {[%clk 0:02:19.2]} 15. Nxe4 {[%clk
0:01:00.2]} 15... dxe4 {[%clk 0:02:19]} 16. Qxe4 {[%clk 0:01:01.1]} 16... Bxa3
{[%clk 0:02:15.4]} 17. Qc2 {[%clk 0:01:00.7]} 17... Be7 {[%clk 0:02:11.9]} 18.
Rfe1 {[%clk 0:00:59]} 18... Qb6 {[%clk 0:01:50.9]} 19. Rbd1 {[%clk 0:00:56.3]}
19... Bb4 {[%clk 0:01:48.8]} 20. Re2 {[%clk 0:00:51.7]} 20... Nf6 {[%clk
0:01:48.9]} 21. e4 {[%clk 0:00:37]} 21... Re6 {[%clk 0:01:42.8]} 22. d5 {[%clk
0:00:26]} 22... cxd5 {[%clk 0:01:41.8]} 23. exd5 {[%clk 0:00:26.5]} 23... Rxe2
{[%clk 0:01:39.1]} 24. Qxe2 {[%clk 0:00:27.4]} 24... Rd8 {[%clk 0:01:37.5]} 25.
h3 {[%clk 0:00:14.4]} 25... Nxd5 {[%clk 0:01:16.2]} 26. Rxd5 {[%clk 0:00:13.1]}
26... Rxd5 {[%clk 0:01:15.5]} 27. Qe8+ {[%clk 0:00:13.4]} 27... Bf8 {[%clk
0:01:14.6]} 28. Be5 {[%clk 0:00:10.5]} 28... Qe6 {[%clk 0:01:12.6]} 29. Qb8
{[%clk 0:00:06.5]} 29... f6 {[%clk 0:01:10]} 30. Bc3 {[%clk 0:00:05.4]} 30...
Rd1+ {[%clk 0:01:08]} 31. Kh2 {[%clk 0:00:05.4]} 31... Qd6+ {[%clk 0:01:06.7]}
32. Qxd6 {[%clk 0:00:05.8]} 32... Bxd6+ {[%clk 0:01:07.4]} 33. g3 {[%clk
0:00:05.9]} 33... a4 {[%clk 0:01:06.8]} 0-1

[Event "*** Titled Tuesday Blitz"]
[Site "Chess.com"]
[Date "2020.03.03"]
[Round "8"]
[White "MiroVlasenko"]
[Black "Megagigahiper3345"]
[Result "1-0"]
[WhiteElo "2648"]
[BlackElo "2147"]
[TimeControl "180+1"]
[EndTime "14:34:18 PST"]
[Termination "MiroVlasenko won by resignation"]

1. d4 {[%clk 0:03:00.9]} 1... d5 {[%clk 0:02:59.4]} 2. Bf4 {[%clk 0:03:00.7]}
2... c5 {[%clk 0:02:55]} 3. e4 {[%clk 0:02:59.6]} 3... cxd4 {[%clk 0:02:47.2]}
4. exd5 {[%clk 0:02:57.4]} 4... Qxd5 {[%clk 0:02:39.4]} 5. Nc3 {[%clk
0:02:44.6]} 5... Qe6+ {[%clk 0:02:32.3]} 6. Nce2 {[%clk 0:02:44.2]} 6... Nc6
{[%clk 0:02:25.7]} 7. Nf3 {[%clk 0:02:43.9]} 7... Nf6 {[%clk 0:02:10.3]} 8. Nxd4
{[%clk 0:02:40.5]} 8... Nxd4 {[%clk 0:02:05.8]} 9. Qxd4 {[%clk 0:02:41.4]} 9...
g6 {[%clk 0:02:02.5]} 10. O-O-O {[%clk 0:02:37.3]} 10... Bd7 {[%clk 0:02:00]}
11. Nc3 {[%clk 0:02:30.9]} 11... Bg7 {[%clk 0:01:56.3]} 12. Bc4 {[%clk
0:02:30.3]} 12... Qb6 {[%clk 0:01:50.2]} 13. Nd5 {[%clk 0:02:25.4]} 13... Qxd4
{[%clk 0:01:46.1]} 14. Nc7+ {[%clk 0:02:24.5]} 14... Kd8 {[%clk 0:01:40.2]} 15.
Rxd4 {[%clk 0:02:24]} 15... Rc8 {[%clk 0:01:40.4]} 16. Re1 {[%clk 0:02:09.5]}
16... Rxc7 {[%clk 0:01:19.3]} 17. Bxc7+ {[%clk 0:02:08.7]} 17... Kxc7 {[%clk
0:01:20.2]} 18. Rxe7 {[%clk 0:02:08.4]} 18... Rd8 {[%clk 0:01:11.2]} 19. Rxf7
{[%clk 0:02:01.5]} 19... Bh8 {[%clk 0:01:10.4]} 20. Be6 {[%clk 0:01:53.4]} 20...
Kc6 {[%clk 0:01:08.9]} 21. Bxd7+ {[%clk 0:01:52.6]} 21... Nxd7 {[%clk
0:01:07.6]} 22. Rd3 {[%clk 0:01:48.7]} 22... h5 {[%clk 0:00:54.9]} 23. c3 {[%clk
0:01:46.5]} 23... Be5 {[%clk 0:00:50.4]} 24. f4 {[%clk 0:01:36.9]} 24... Bd6
{[%clk 0:00:50.5]} 25. g3 {[%clk 0:01:36.5]} 25... Nc5 {[%clk 0:00:50.7]} 26.
Rd1 {[%clk 0:01:32.7]} 26... Ne4 {[%clk 0:00:51]} 27. Rg7 {[%clk 0:01:25.6]}
27... h4 {[%clk 0:00:34.4]} 28. Rxg6 {[%clk 0:01:20.3]} 28... hxg3 {[%clk
0:00:34.3]} 29. hxg3 {[%clk 0:01:20.2]} 29... Kc7 {[%clk 0:00:27.2]} 30. Rd4
{[%clk 0:01:18.4]} 30... Nc5 {[%clk 0:00:24.2]} 31. Kc2 {[%clk 0:01:17.9]} 31...
Rd7 {[%clk 0:00:22.1]} 32. a4 {[%clk 0:01:08.5]} 32... a5 {[%clk 0:00:20.2]} 33.
g4 {[%clk 0:01:05.8]} 33... b6 {[%clk 0:00:10.7]} 34. g5 {[%clk 0:01:03.1]}
34... Be7 {[%clk 0:00:06.4]} 35. Rxd7+ {[%clk 0:00:58.3]} 35... Nxd7 {[%clk
0:00:07.3]} 36. Re6 {[%clk 0:00:58]} 36... Bd8 {[%clk 0:00:06.4]} 37. g6 {[%clk
0:00:58.2]} 37... Nf8 {[%clk 0:00:06.7]} 38. g7 {[%clk 0:00:54.4]} 38... Nxe6
{[%clk 0:00:07.1]} 39. g8=Q {[%clk 0:00:54.7]} 39... Nxf4 {[%clk 0:00:08]} 40.
Qf7+ {[%clk 0:00:54.6]} 40... Kb8 {[%clk 0:00:06.4]} 41. Qxf4+ {[%clk 0:00:55]}
1-0

[Event "*** Titled Tuesday Blitz"]
[Site "Chess.com"]
[Date "2020.03.03"]
[Round "8"]
[White "Irishchessman16"]
[Black "lelya96"]
[Result "1-0"]
[WhiteElo "2205"]
[BlackElo "2279"]
[TimeControl "180+1"]
[EndTime "14:34:26 PST"]
[Termination "Irishchessman16 won by resignation"]

1. e4 {[%clk 0:03:00.9]} 1... e5 {[%clk 0:02:59.9]} 2. Nf3 {[%clk 0:03:00.2]}
2... Nc6 {[%clk 0:02:59.6]} 3. d4 {[%clk 0:02:53.8]} 3... exd4 {[%clk 0:02:54]}
4. Nxd4 {[%clk 0:02:52]} 4... Bb4+ {[%clk 0:02:46.2]} 5. c3 {[%clk 0:02:49.4]}
5... Bc5 {[%clk 0:02:45.6]} 6. Be3 {[%clk 0:02:43.7]} 6... Bb6 {[%clk
0:02:43.5]} 7. Na3 {[%clk 0:01:56.9]} 7... Nge7 {[%clk 0:02:38.1]} 8. Nc4 {[%clk
0:01:55.8]} 8... O-O {[%clk 0:02:38.3]} 9. Nxb6 {[%clk 0:01:53.6]} 9... axb6
{[%clk 0:02:37.9]} 10. Bd3 {[%clk 0:01:50.1]} 10... d5 {[%clk 0:02:30.4]} 11.
O-O {[%clk 0:01:49.5]} 11... dxe4 {[%clk 0:02:28.9]} 12. Bxe4 {[%clk 0:01:49.2]}
12... f5 {[%clk 0:02:26.9]} 13. Bf3 {[%clk 0:01:18]} 13... Qe8 {[%clk
0:02:20.1]} 14. Nb5 {[%clk 0:01:14.8]} 14... Qf7 {[%clk 0:01:20.8]} 15. Nxc7
{[%clk 0:01:14]} 15... Ra5 {[%clk 0:01:14.3]} 16. a4 {[%clk 0:01:04.9]} 16...
Rd8 {[%clk 0:01:09.4]} 17. Qc1 {[%clk 0:00:54.8]} 17... Ng6 {[%clk 0:00:49.5]}
18. Bxb6 {[%clk 0:00:53.1]} 18... Ra6 {[%clk 0:00:49.2]} 19. Nxa6 {[%clk
0:00:51.7]} 19... bxa6 {[%clk 0:00:47.3]} 20. Bxd8 {[%clk 0:00:47.9]} 20... Nxd8
{[%clk 0:00:47.9]} 21. Qd2 {[%clk 0:00:44.5]} 21... Qf6 {[%clk 0:00:41.6]} 22.
Rad1 {[%clk 0:00:42.9]} 22... Nf7 {[%clk 0:00:41.3]} 23. Rfe1 {[%clk 0:00:40.5]}
23... Nge5 {[%clk 0:00:40.6]} 24. Bd5 {[%clk 0:00:40.2]} 24... h6 {[%clk
0:00:37.9]} 25. f4 {[%clk 0:00:39.9]} 25... Qb6+ {[%clk 0:00:33.5]} 26. Qf2
{[%clk 0:00:34.5]} 26... Qxf2+ {[%clk 0:00:29.2]} 27. Kxf2 {[%clk 0:00:35.4]}
27... Ng4+ {[%clk 0:00:29.8]} 28. Kg3 {[%clk 0:00:36.3]} 28... Nf6 {[%clk
0:00:22.9]} 29. Bxf7+ {[%clk 0:00:34.7]} 29... Kxf7 {[%clk 0:00:23.2]} 30. b4
{[%clk 0:00:32.6]} 30... Be6 {[%clk 0:00:19.9]} 31. b5 {[%clk 0:00:31.5]} 31...
Bc4 {[%clk 0:00:18.1]} 32. b6 {[%clk 0:00:29.7]} 32... Ne4+ {[%clk 0:00:17.5]}
33. Rxe4 {[%clk 0:00:28.8]} 33... fxe4 {[%clk 0:00:17.5]} 34. b7 {[%clk
0:00:29.1]} 1-0

[Event "*** Titled Tuesday Blitz"]
[Site "Chess.com"]
[Date "2020.03.03"]
[Round "8"]
[White "Aleksandr_Kozak"]
[Black "Atanejhad"]
[Result "0-1"]
[WhiteElo "2268"]
[BlackElo "2589"]
[TimeControl "180+1"]
[EndTime "14:34:29 PST"]
[Termination "Atanejhad won on time"]

1. e4 {[%clk 0:03:00]} 1... e5 {[%clk 0:02:59.6]} 2. Nf3 {[%clk 0:02:58.8]} 2...
Nc6 {[%clk 0:02:59.5]} 3. Bb5 {[%clk 0:02:59.3]} 3... a6 {[%clk 0:02:59.2]} 4.
Ba4 {[%clk 0:02:58.8]} 4... Nf6 {[%clk 0:02:59.2]} 5. O-O {[%clk 0:02:57.1]}
5... Be7 {[%clk 0:02:59.6]} 6. Re1 {[%clk 0:02:56]} 6... b5 {[%clk 0:02:59.8]}
7. Bb3 {[%clk 0:02:55.1]} 7... d6 {[%clk 0:03:00.7]} 8. c3 {[%clk 0:02:53.7]}
8... O-O {[%clk 0:03:01.1]} 9. h3 {[%clk 0:02:53.4]} 9... Na5 {[%clk 0:02:57.9]}
10. Bc2 {[%clk 0:02:53]} 10... c5 {[%clk 0:02:58.8]} 11. d4 {[%clk 0:02:52.2]}
11... Qc7 {[%clk 0:02:59.4]} 12. Nbd2 {[%clk 0:02:45.2]} 12... Nc6 {[%clk
0:02:49.7]} 13. d5 {[%clk 0:02:16.5]} 13... Nd8 {[%clk 0:02:48.5]} 14. a4 {[%clk
0:02:15.5]} 14... Rb8 {[%clk 0:02:37.9]} 15. axb5 {[%clk 0:02:11.7]} 15... axb5
{[%clk 0:02:38.8]} 16. Nf1 {[%clk 0:02:11.1]} 16... Ne8 {[%clk 0:02:38.7]} 17.
Ne3 {[%clk 0:01:59.5]} 17... g6 {[%clk 0:02:38.5]} 18. Ng4 {[%clk 0:01:54.1]}
18... Ng7 {[%clk 0:02:36.5]} 19. b4 {[%clk 0:01:34.4]} 19... f6 {[%clk
0:01:49.5]} 20. Nh6+ {[%clk 0:01:00.3]} 20... Kh8 {[%clk 0:01:48.5]} 21. g4
{[%clk 0:00:43.5]} 21... Bd7 {[%clk 0:01:39.4]} 22. Be3 {[%clk 0:00:40.6]} 22...
Nf7 {[%clk 0:01:33.3]} 23. Nxf7+ {[%clk 0:00:38.1]} 23... Rxf7 {[%clk
0:01:34.2]} 24. Ra6 {[%clk 0:00:31.8]} 24... Rbf8 {[%clk 0:01:27.7]} 25. bxc5
{[%clk 0:00:30]} 25... Qc8 {[%clk 0:00:59.1]} 26. Qa1 {[%clk 0:00:24.1]} 26...
dxc5 {[%clk 0:00:54.7]} 27. d6 {[%clk 0:00:22.2]} 27... Bd8 {[%clk 0:00:54.5]}
28. Ra8 {[%clk 0:00:14.6]} 28... Qc6 {[%clk 0:00:51.6]} 29. Ra6 {[%clk
0:00:09.9]} 29... Qc8 {[%clk 0:00:44.7]} 30. Ra8 {[%clk 0:00:08.2]} 30... Qb7
{[%clk 0:00:43.1]} 31. g5 {[%clk 0:00:04.3]} 31... Bxh3 {[%clk 0:00:39.5]} 32.
gxf6 {[%clk 0:00:02.8]} 32... Bxf6 {[%clk 0:00:39.5]} 33. Rxf8+ {[%clk
0:00:01.2]} 33... Rxf8 {[%clk 0:00:40.4]} 0-1

[Event "*** Titled Tuesday Blitz"]
[Site "Chess.com"]
[Date "2020.03.03"]
[Round "8"]
[White "yoolund"]
[Black "VeraNebolsina"]
[Result "1-0"]
[WhiteElo "2547"]
[BlackElo "2335"]
[TimeControl "180+1"]
[EndTime "14:34:29 PST"]
[Termination "yoolund won by resignation"]

1. d4 {[%clk 0:02:56.5]} 1... Nf6 {[%clk 0:02:57.5]} 2. Bg5 {[%clk 0:02:49]}
2... d5 {[%clk 0:02:54.2]} 3. Bxf6 {[%clk 0:02:46.9]} 3... gxf6 {[%clk
0:02:53.4]} 4. e3 {[%clk 0:02:46.4]} 4... c5 {[%clk 0:02:48.1]} 5. dxc5 {[%clk
0:02:41.3]} 5... Nc6 {[%clk 0:02:03.1]} 6. Nf3 {[%clk 0:02:36.8]} 6... e6 {[%clk
0:01:46.9]} 7. c4 {[%clk 0:02:35.7]} 7... Qa5+ {[%clk 0:01:39.7]} 8. Nc3 {[%clk
0:02:33.6]} 8... dxc4 {[%clk 0:01:34.1]} 9. Bxc4 {[%clk 0:02:24.3]} 9... Qxc5
{[%clk 0:01:25.8]} 10. Bd3 {[%clk 0:02:10.1]} 10... Bd7 {[%clk 0:01:19.1]} 11.
O-O {[%clk 0:02:00.6]} 11... f5 {[%clk 0:01:16.4]} 12. Rc1 {[%clk 0:01:46.6]}
12... Qe7 {[%clk 0:01:05.4]} 13. Nd4 {[%clk 0:01:02.2]} 13... Nxd4 {[%clk
0:01:02.1]} 14. exd4 {[%clk 0:00:53]} 14... Bh6 {[%clk 0:01:00.8]} 15. Rc2
{[%clk 0:00:50.1]} 15... O-O {[%clk 0:00:53.7]} 16. d5 {[%clk 0:00:46.9]} 16...
e5 {[%clk 0:00:35.1]} 17. Qh5 {[%clk 0:00:45.8]} 17... Qf6 {[%clk 0:00:33.6]}
18. f3 {[%clk 0:00:40.9]} 18... Kh8 {[%clk 0:00:31.5]} 19. Kh1 {[%clk
0:00:39.4]} 19... Rg8 {[%clk 0:00:30.8]} 20. g4 {[%clk 0:00:34.4]} 20... Bf4
{[%clk 0:00:25.1]} 21. Bxf5 {[%clk 0:00:31]} 21... Bxf5 {[%clk 0:00:24.1]} 22.
Qxf5 {[%clk 0:00:30.5]} 22... Qxf5 {[%clk 0:00:24.3]} 23. gxf5 {[%clk
0:00:31.4]} 23... Rac8 {[%clk 0:00:24.8]} 24. Rff2 {[%clk 0:00:28.1]} 24... Rg5
{[%clk 0:00:22.2]} 25. Ne4 {[%clk 0:00:26.7]} 25... Rxc2 {[%clk 0:00:20]} 26.
Rxc2 {[%clk 0:00:27.6]} 26... Rxf5 {[%clk 0:00:19.5]} 27. d6 {[%clk 0:00:27.3]}
1-0

[Event "*** Titled Tuesday Blitz"]
[Site "Chess.com"]
[Date "2020.03.03"]
[Round "8"]
[White "Supernotar"]
[Black "Bigfish1995"]
[Result "1-0"]
[WhiteElo "2835"]
[BlackElo "3072"]
[TimeControl "180+1"]
[EndTime "14:34:32 PST"]
[Termination "Supernotar won by checkmate"]

1. d4 {[%clk 0:03:00.9]} 1... Nf6 {[%clk 0:02:59.7]} 2. c4 {[%clk 0:03:00.7]}
2... e6 {[%clk 0:02:58.6]} 3. Nf3 {[%clk 0:03:00.9]} 3... b6 {[%clk 0:02:58.7]}
4. g3 {[%clk 0:03:00.9]} 4... Ba6 {[%clk 0:02:58.8]} 5. b3 {[%clk 0:02:59.6]}
5... d5 {[%clk 0:02:58.9]} 6. Nbd2 {[%clk 0:02:58]} 6... Bb4 {[%clk 0:02:56.4]}
7. Qc2 {[%clk 0:02:53.3]} 7... c5 {[%clk 0:02:54.3]} 8. Bg2 {[%clk 0:02:44.2]}
8... Nc6 {[%clk 0:02:49.8]} 9. dxc5 {[%clk 0:02:40.5]} 9... Bxc5 {[%clk
0:02:49.4]} 10. O-O {[%clk 0:02:34.4]} 10... Rc8 {[%clk 0:02:41.2]} 11. Bb2
{[%clk 0:02:25.4]} 11... O-O {[%clk 0:02:37.7]} 12. a3 {[%clk 0:02:14.4]} 12...
dxc4 {[%clk 0:02:33]} 13. Nxc4 {[%clk 0:02:11.4]} 13... b5 {[%clk 0:02:26.3]}
14. Rad1 {[%clk 0:02:02.2]} 14... Nd5 {[%clk 0:01:59.4]} 15. e4 {[%clk
0:01:44.6]} 15... bxc4 {[%clk 0:01:53.4]} 16. bxc4 {[%clk 0:01:42.4]} 16... Ne3
{[%clk 0:01:02.6]} 17. fxe3 {[%clk 0:01:39.1]} 17... Qe7 {[%clk 0:01:00]} 18.
Kh1 {[%clk 0:01:19.4]} 18... f6 {[%clk 0:00:42]} 19. e5 {[%clk 0:01:13.1]} 19...
f5 {[%clk 0:00:30.7]} 20. Nd4 {[%clk 0:01:13.1]} 20... Nxe5 {[%clk 0:00:30.9]}
21. Nxe6 {[%clk 0:01:12.1]} 21... Nxc4 {[%clk 0:00:30.3]} 22. Nxc5 {[%clk
0:00:55.3]} 22... Nxe3 {[%clk 0:00:18.6]} 23. Rfe1 {[%clk 0:00:50.3]} 23... Rfe8
{[%clk 0:00:10.2]} 24. Qb3+ {[%clk 0:00:43.1]} 24... Bc4 {[%clk 0:00:10.5]} 25.
Rxe3 {[%clk 0:00:30.6]} 25... Bxb3 {[%clk 0:00:08.9]} 26. Rxe7 {[%clk
0:00:29.5]} 26... Bxd1 {[%clk 0:00:09]} 27. Rxg7+ {[%clk 0:00:27.7]} 27... Kf8
{[%clk 0:00:06.7]} 28. Nd7# {[%clk 0:00:26.4]} 1-0

[Event "*** Titled Tuesday Blitz"]
[Site "Chess.com"]
[Date "2020.03.03"]
[Round "8"]
[White "nonscitis"]
[Black "Bulldog167"]
[Result "1-0"]
[WhiteElo "2608"]
[BlackElo "2753"]
[TimeControl "180+1"]
[EndTime "14:34:36 PST"]
[Termination "nonscitis won by checkmate"]

1. d4 {[%clk 0:03:00.9]} 1... Nf6 {[%clk 0:02:59.2]} 2. c4 {[%clk 0:03:00.4]}
2... e6 {[%clk 0:02:59.8]} 3. Nf3 {[%clk 0:02:59.4]} 3... d5 {[%clk 0:03:00.3]}
4. Nc3 {[%clk 0:02:59.3]} 4... dxc4 {[%clk 0:03:00.5]} 5. e4 {[%clk 0:02:58.4]}
5... b5 {[%clk 0:03:00.6]} 6. e5 {[%clk 0:02:54.9]} 6... Nd5 {[%clk 0:03:00.6]}
7. Nxb5 {[%clk 0:02:54.1]} 7... Nb6 {[%clk 0:02:56.7]} 8. Be2 {[%clk 0:02:52.9]}
8... Nc6 {[%clk 0:02:53.9]} 9. Bg5 {[%clk 0:02:46]} 9... Qd7 {[%clk 0:02:43.8]}
10. Rc1 {[%clk 0:02:43.6]} 10... h6 {[%clk 0:02:28.7]} 11. Be3 {[%clk
0:02:39.8]} 11... Bb7 {[%clk 0:02:27.3]} 12. O-O {[%clk 0:02:34.8]} 12... Nb4
{[%clk 0:02:25.2]} 13. Na3 {[%clk 0:02:27.8]} 13... Nxa2 {[%clk 0:02:20.5]} 14.
Ra1 {[%clk 0:02:27.2]} 14... Nb4 {[%clk 0:02:20.1]} 15. Nxc4 {[%clk 0:02:25.8]}
15... Nxc4 {[%clk 0:02:19.4]} 16. Bxc4 {[%clk 0:02:25.2]} 16... Be7 {[%clk
0:02:16.5]} 17. Nd2 {[%clk 0:02:09]} 17... O-O {[%clk 0:02:09.4]} 18. Qg4 {[%clk
0:02:08.3]} 18... Kh8 {[%clk 0:02:07.1]} 19. Qh3 {[%clk 0:02:06.9]} 19... Kh7
{[%clk 0:01:50.2]} 20. Rfd1 {[%clk 0:01:27.2]} 20... Bd5 {[%clk 0:01:33.6]} 21.
Be2 {[%clk 0:01:20.6]} 21... f5 {[%clk 0:01:24]} 22. exf6 {[%clk 0:01:17.8]}
22... Bxf6 {[%clk 0:01:15.5]} 23. Nf3 {[%clk 0:01:16.3]} 23... Kg8 {[%clk
0:01:06.2]} 24. Rac1 {[%clk 0:01:13.4]} 24... Rab8 {[%clk 0:00:54.2]} 25. Qg3
{[%clk 0:01:11.4]} 25... c6 {[%clk 0:00:11.8]} 26. Bxh6 {[%clk 0:01:09.8]} 26...
Be4 {[%clk 0:00:09.4]} 27. Bf4 {[%clk 0:01:01.8]} 27... Rbd8 {[%clk 0:00:09.6]}
28. Ne5 {[%clk 0:00:55.8]} 28... Qb7 {[%clk 0:00:09.7]} 29. Bg4 {[%clk
0:00:48.9]} 29... Bf5 {[%clk 0:00:07.9]} 30. Bxf5 {[%clk 0:00:48.8]} 30... exf5
{[%clk 0:00:08.5]} 31. Qb3+ {[%clk 0:00:48.3]} 31... Kh7 {[%clk 0:00:08.2]} 32.
Rc3 {[%clk 0:00:41.9]} 32... Bxe5 {[%clk 0:00:04.5]} 33. Rh3+ {[%clk 0:00:37.5]}
33... Kg6 {[%clk 0:00:05]} 34. Bxe5 {[%clk 0:00:35.8]} 34... Qf7 {[%clk
0:00:01.4]} 35. Qg3# {[%clk 0:00:32.9]} 1-0

[Event "*** Titled Tuesday Blitz"]
[Site "Chess.com"]
[Date "2020.03.03"]
[Round "8"]
[White "Jbd735"]
[Black "RoelandPruijssers"]
[Result "0-1"]
[WhiteElo "2511"]
[BlackElo "2676"]
[TimeControl "180+1"]
[EndTime "14:34:40 PST"]
[Termination "RoelandPruijssers won on time"]

1. e4 {[%clk 0:03:00.9]} 1... d5 {[%clk 0:02:58.6]} 2. exd5 {[%clk 0:03:00.7]}
2... Qxd5 {[%clk 0:02:58.4]} 3. Nc3 {[%clk 0:03:00.9]} 3... Qa5 {[%clk 0:02:58]}
4. d4 {[%clk 0:03:00.5]} 4... Nf6 {[%clk 0:02:58.4]} 5. Bc4 {[%clk 0:02:59.7]}
5... Bg4 {[%clk 0:02:51.8]} 6. Ne2 {[%clk 0:02:57.2]} 6... Nc6 {[%clk
0:02:44.5]} 7. f3 {[%clk 0:02:55.7]} 7... Bf5 {[%clk 0:02:29.3]} 8. Be3 {[%clk
0:02:37.5]} 8... O-O-O {[%clk 0:02:26.5]} 9. O-O {[%clk 0:02:34.4]} 9... e5
{[%clk 0:02:24.3]} 10. d5 {[%clk 0:02:04.1]} 10... Bc5 {[%clk 0:02:08.5]} 11.
Qc1 {[%clk 0:01:54.7]} 11... Nb4 {[%clk 0:01:50.3]} 12. Bb3 {[%clk 0:01:29.1]}
12... Bxc2 {[%clk 0:01:38.9]} 13. Kh1 {[%clk 0:01:15.8]} 13... Bxe3 {[%clk
0:01:27.7]} 14. Qxe3 {[%clk 0:01:16.7]} 14... Qb6 {[%clk 0:01:27.8]} 15. Qxe5
{[%clk 0:01:05.6]} 15... Bxb3 {[%clk 0:01:18]} 16. axb3 {[%clk 0:01:04.6]} 16...
Nbxd5 {[%clk 0:01:17.8]} 17. Nxd5 {[%clk 0:00:47.8]} 17... Rxd5 {[%clk
0:01:15.9]} 18. Qc3 {[%clk 0:00:46.5]} 18... Re8 {[%clk 0:01:11.9]} 19. Nf4
{[%clk 0:00:44.5]} 19... Rde5 {[%clk 0:01:06.9]} 20. Rfc1 {[%clk 0:00:40.3]}
20... Kb8 {[%clk 0:01:05.2]} 21. h3 {[%clk 0:00:15.8]} 21... a6 {[%clk
0:01:02.6]} 22. Nd3 {[%clk 0:00:15.1]} 22... Re3 {[%clk 0:01:01.8]} 23. Qc4
{[%clk 0:00:13.8]} 23... R8e7 {[%clk 0:00:54.2]} 24. Nc5 {[%clk 0:00:13.3]}
24... Re2 {[%clk 0:00:50.6]} 25. Nxa6+ {[%clk 0:00:04.9]} 25... bxa6 {[%clk
0:00:47.3]} 26. Rxa6 {[%clk 0:00:04.9]} 26... Re1+ {[%clk 0:00:47.4]} 27. Rxe1
{[%clk 0:00:05.1]} 27... Rxe1+ {[%clk 0:00:47.1]} 28. Kh2 {[%clk 0:00:05.7]}
28... Qg1+ {[%clk 0:00:45.8]} 29. Kg3 {[%clk 0:00:05.8]} 29... Nd7 {[%clk
0:00:16.2]} 30. Qb5+ {[%clk 0:00:02.8]} 30... Nb6 {[%clk 0:00:16.2]} 31. Qc6
{[%clk 0:00:02.3]} 31... Qd4 {[%clk 0:00:13]} 0-1

[Event "*** Titled Tuesday Blitz"]
[Site "Chess.com"]
[Date "2020.03.03"]
[Round "8"]
[White "Azeryahu"]
[Black "Willychess95"]
[Result "1-0"]
[WhiteElo "2812"]
[BlackElo "2638"]
[TimeControl "180+1"]
[EndTime "14:34:41 PST"]
[Termination "Azeryahu won on time"]

1. Nf3 {[%clk 0:03:00.9]} 1... c5 {[%clk 0:02:57.9]} 2. g3 {[%clk 0:03:00.9]}
2... Nf6 {[%clk 0:02:57.1]} 3. Bg2 {[%clk 0:03:00.9]} 3... d5 {[%clk 0:02:48.7]}
4. O-O {[%clk 0:03:00.2]} 4... Nc6 {[%clk 0:02:45.7]} 5. d4 {[%clk 0:02:59.4]}
5... cxd4 {[%clk 0:02:36.6]} 6. Nxd4 {[%clk 0:02:59]} 6... e5 {[%clk 0:02:36.8]}
7. Nxc6 {[%clk 0:02:59.1]} 7... bxc6 {[%clk 0:02:36.6]} 8. c4 {[%clk 0:03:00]}
8... Be6 {[%clk 0:02:32.7]} 9. Nc3 {[%clk 0:02:57.9]} 9... Be7 {[%clk 0:02:22]}
10. Bg5 {[%clk 0:02:46.2]} 10... e4 {[%clk 0:02:17.3]} 11. cxd5 {[%clk
0:02:40.3]} 11... cxd5 {[%clk 0:02:17]} 12. Qa4+ {[%clk 0:02:40.6]} 12... Bd7
{[%clk 0:02:02.7]} 13. Qd4 {[%clk 0:02:40.3]} 13... O-O {[%clk 0:01:59.4]} 14.
Bxf6 {[%clk 0:02:33.9]} 14... Bxf6 {[%clk 0:01:59.2]} 15. Qxd5 {[%clk
0:02:34.6]} 15... Be6 {[%clk 0:01:36.5]} 16. Qxe4 {[%clk 0:02:32]} 16... Rb8
{[%clk 0:01:32.1]} 17. Qc2 {[%clk 0:02:27.4]} 17... Qb6 {[%clk 0:01:27.7]} 18.
Nd5 {[%clk 0:01:59.1]} 18... Bxd5 {[%clk 0:01:22.5]} 19. Bxd5 {[%clk 0:02:00]}
19... Qxb2 {[%clk 0:01:22.8]} 20. Rac1 {[%clk 0:02:00.5]} 20... Qe5 {[%clk
0:01:13.7]} 21. Bb3 {[%clk 0:01:58.3]} 21... h5 {[%clk 0:01:06.5]} 22. h4 {[%clk
0:01:47.9]} 22... Rb4 {[%clk 0:01:01.2]} 23. Qc5 {[%clk 0:01:37.3]} 23... Qxc5
{[%clk 0:00:29.1]} 24. Rxc5 {[%clk 0:01:37.3]} 24... g6 {[%clk 0:00:30]} 25. Rc7
{[%clk 0:01:37.3]} 25... a5 {[%clk 0:00:29.6]} 26. Ra7 {[%clk 0:01:36.6]} 26...
Rb5 {[%clk 0:00:27.9]} 27. Rd1 {[%clk 0:01:36.6]} 27... Bc3 {[%clk 0:00:19.4]}
28. Rdd7 {[%clk 0:01:13.6]} 28... Rf5 {[%clk 0:00:13.8]} 29. e4 {[%clk
0:01:13.7]} 29... Rf6 {[%clk 0:00:10.6]} 30. f4 {[%clk 0:01:14.2]} 30... Bb4
{[%clk 0:00:02]} 31. e5 {[%clk 0:01:13.3]} 31... Bc5+ {[%clk 0:00:02.5]} 32. Kg2
{[%clk 0:01:12.6]} 32... Bxa7 {[%clk 0:00:03.4]} 33. exf6 {[%clk 0:01:06.7]}
33... Bc5 {[%clk 0:00:03.7]} 34. Kf3 {[%clk 0:01:00.7]} 34... Bb4 {[%clk
0:00:03.4]} 35. f5 {[%clk 0:00:54.8]} 35... gxf5 {[%clk 0:00:02.4]} 36. Kf4
{[%clk 0:00:55.3]} 36... Kh7 {[%clk 0:00:02.1]} 37. Kxf5 {[%clk 0:00:48.5]} 1-0